[Event "*** Titled Tuesday Blitz"]
[Site "Chess.com"]
[Date "2020.12.29"]
[Round "8"]
[White "Blue_Ratatoeskr"]
[Black "vanyakuba"]
[Result "1-0"]
[WhiteElo "2356"]
[BlackElo "2448"]
[TimeControl "180+1"]
[EndTime "11:29:10 PST"]
[Termination "Blue_Ratatoeskr won by resignation"]

1. c4 {[%clk 0:03:00.9]} 1... e6 {[%clk 0:02:55.8]} 2. g3 {[%clk 0:03:01.2]}
2... d5 {[%clk 0:02:55.7]} 3. Bg2 {[%clk 0:03:01.6]} 3... c5 {[%clk 0:02:55.9]}
4. cxd5 {[%clk 0:02:58.5]} 4... exd5 {[%clk 0:02:55.2]} 5. Nf3 {[%clk
0:02:58.9]} 5... Nc6 {[%clk 0:02:55.3]} 6. d4 {[%clk 0:02:58.5]} 6... Nf6 {[%clk
0:02:55.5]} 7. O-O {[%clk 0:02:57.6]} 7... Be7 {[%clk 0:02:55]} 8. Be3 {[%clk
0:02:53.3]} 8... c4 {[%clk 0:02:29.7]} 9. Ne5 {[%clk 0:02:52]} 9... O-O {[%clk
0:02:28.4]} 10. b3 {[%clk 0:02:52.1]} 10... Be6 {[%clk 0:02:11.9]} 11. bxc4
{[%clk 0:02:42.6]} 11... dxc4 {[%clk 0:01:46.9]} 12. Bxc6 {[%clk 0:02:28.2]}
12... bxc6 {[%clk 0:01:46.8]} 13. Nxc6 {[%clk 0:02:28.4]} 13... Qc7 {[%clk
0:01:42.2]} 14. Nxe7+ {[%clk 0:02:27.6]} 14... Qxe7 {[%clk 0:01:42]} 15. Nc3
{[%clk 0:02:27.9]} 15... Rfd8 {[%clk 0:01:40.8]} 16. Bg5 {[%clk 0:02:25.3]}
16... h6 {[%clk 0:01:40.6]} 17. Bxf6 {[%clk 0:02:15.4]} 17... Qxf6 {[%clk
0:01:41.5]} 18. e3 {[%clk 0:02:14.1]} 18... Rac8 {[%clk 0:00:58.6]} 19. Kg2
{[%clk 0:02:06.9]} 19... Qg6 {[%clk 0:00:53.8]} 20. h3 {[%clk 0:01:44.5]} 20...
h5 {[%clk 0:00:53.2]} 21. Qf3 {[%clk 0:01:40.8]} 21... h4 {[%clk 0:00:49.3]} 22.
g4 {[%clk 0:01:34.3]} 22... f5 {[%clk 0:00:48.3]} 23. Kh2 {[%clk 0:01:06.7]}
23... fxg4 {[%clk 0:00:48]} 24. Rg1 {[%clk 0:01:06.5]} 24... Rf8 {[%clk
0:00:46.7]} 25. Qe2 {[%clk 0:00:58.2]} 25... Rxf2+ {[%clk 0:00:25.6]} 26. Qxf2
{[%clk 0:00:50.4]} 26... g3+ {[%clk 0:00:25.7]} 27. Kh1 {[%clk 0:00:48.6]} 27...
gxf2 {[%clk 0:00:05.9]} 28. Rxg6 {[%clk 0:00:47.4]} 28... Bxh3 {[%clk
0:00:06.5]} 29. e4 {[%clk 0:00:38.6]} 29... f1=Q+ {[%clk 0:00:06.4]} 30. Rxf1
{[%clk 0:00:36.1]} 30... Bxf1 {[%clk 0:00:07.3]} 31. Kg1 {[%clk 0:00:31.8]}
31... Bd3 {[%clk 0:00:07]} 32. Rg4 {[%clk 0:00:28.1]} 32... Rf8 {[%clk
0:00:07.2]} 33. Rxh4 {[%clk 0:00:27.2]} 33... Rf1+ {[%clk 0:00:07.4]} 34. Kg2
{[%clk 0:00:26.7]} 34... Rc1 {[%clk 0:00:07.9]} 35. Nd5 {[%clk 0:00:23.3]} 35...
Rc2+ {[%clk 0:00:07.7]} 36. Kf3 {[%clk 0:00:22.5]} 36... Rxa2 {[%clk 0:00:07.8]}
37. Nf4 {[%clk 0:00:18.9]} 37... Bb1 {[%clk 0:00:06.5]} 38. Ke3 {[%clk
0:00:18.5]} 38... c3 {[%clk 0:00:06.9]} 39. Ne2 {[%clk 0:00:18.3]} 39... Ra3
{[%clk 0:00:06.3]} 40. d5 {[%clk 0:00:15.2]} 40... c2+ {[%clk 0:00:05.9]} 41.
Kd4 {[%clk 0:00:15.1]} 41... Ra4+ {[%clk 0:00:04.4]} 42. Kc5 {[%clk 0:00:13.5]}
42... c1=Q+ {[%clk 0:00:03.6]} 43. Nxc1 {[%clk 0:00:12.8]} 43... Rxe4 {[%clk
0:00:04]} 44. Rxe4 {[%clk 0:00:11.5]} 44... Bxe4 {[%clk 0:00:04.9]} 45. d6
{[%clk 0:00:12]} 45... Bf5 {[%clk 0:00:05.2]} 46. Ne2 {[%clk 0:00:11.2]} 46...
Kf7 {[%clk 0:00:05.1]} 47. Nd4 {[%clk 0:00:11.7]} 47... Bd7 {[%clk 0:00:05.6]}
48. Nc6 {[%clk 0:00:10.1]} 48... a6 {[%clk 0:00:04.5]} 49. Ne5+ {[%clk
0:00:09.3]} 49... Ke6 {[%clk 0:00:04.6]} 50. Ng6 {[%clk 0:00:08]} 50... a5
{[%clk 0:00:04]} 51. Nf8+ {[%clk 0:00:07.8]} 51... Kf7 {[%clk 0:00:03.3]} 52.
Nxd7 {[%clk 0:00:08.7]} 52... a4 {[%clk 0:00:01.8]} 53. Ne5+ {[%clk 0:00:07.4]}
53... Ke6 {[%clk 0:00:02.2]} 54. d7 {[%clk 0:00:07.5]} 54... Ke7 {[%clk
0:00:02.4]} 55. Kc6 {[%clk 0:00:06.4]} 55... a3 {[%clk 0:00:02.8]} 56. Kc7
{[%clk 0:00:06.7]} 56... a2 {[%clk 0:00:02.9]} 57. d8=Q+ {[%clk 0:00:07.2]}
57... Ke6 {[%clk 0:00:03.6]} 58. Qe8+ {[%clk 0:00:06.2]} 58... Kd5 {[%clk
0:00:03.4]} 59. Qf7+ {[%clk 0:00:04.7]} 59... Kxe5 {[%clk 0:00:04]} 60. Qxg7+
{[%clk 0:00:05.1]} 60... Ke4 {[%clk 0:00:03.8]} 61. Qa1 {[%clk 0:00:06]} 61...
Kd3 {[%clk 0:00:04.2]} 62. Qxa2 {[%clk 0:00:06.6]} 62... Kc3 {[%clk 0:00:05.1]}
63. Qa4 {[%clk 0:00:06.7]} 1-0

[Event "*** Titled Tuesday Blitz"]
[Site "Chess.com"]
[Date "2020.12.29"]
[Round "8"]
[White "Jenia84"]
[Black "Gulkov_Igor"]
[Result "1/2-1/2"]
[WhiteElo "2357"]
[BlackElo "2539"]
[TimeControl "180+1"]
[EndTime "11:29:13 PST"]
[Termination "Game drawn - insufficient material"]

1. Nf3 {[%clk 0:02:59.8]} 1... Nf6 {[%clk 0:02:59.3]} 2. b3 {[%clk 0:02:52.1]}
2... g6 {[%clk 0:02:58.6]} 3. Bb2 {[%clk 0:02:52]} 3... Bg7 {[%clk 0:02:58.9]}
4. e4 {[%clk 0:02:51.5]} 4... d6 {[%clk 0:02:57.4]} 5. e5 {[%clk 0:02:37.8]}
5... dxe5 {[%clk 0:02:56.5]} 6. Bxe5 {[%clk 0:02:34.1]} 6... O-O {[%clk
0:02:55.9]} 7. Be2 {[%clk 0:02:32.7]} 7... c5 {[%clk 0:02:55.4]} 8. O-O {[%clk
0:02:31.8]} 8... Nc6 {[%clk 0:02:55.5]} 9. Bb2 {[%clk 0:02:31.4]} 9... Bf5
{[%clk 0:02:52.9]} 10. d3 {[%clk 0:02:29.9]} 10... Qd7 {[%clk 0:02:51.2]} 11.
Ne5 {[%clk 0:02:26.4]} 11... Nxe5 {[%clk 0:02:50.4]} 12. Bxe5 {[%clk 0:02:25.9]}
12... Nd5 {[%clk 0:02:45.9]} 13. Bxg7 {[%clk 0:02:25.6]} 13... Kxg7 {[%clk
0:02:45.8]} 14. Bf3 {[%clk 0:02:22.6]} 14... Rad8 {[%clk 0:02:43.1]} 15. Qc1
{[%clk 0:02:19.2]} 15... e5 {[%clk 0:02:34.7]} 16. Nd2 {[%clk 0:02:16.8]} 16...
f6 {[%clk 0:02:33.8]} 17. Re1 {[%clk 0:02:04.7]} 17... Nc3 {[%clk 0:02:22.8]}
18. Be4 {[%clk 0:01:35]} 18... Be6 {[%clk 0:02:04.1]} 19. Bf3 {[%clk 0:01:29.9]}
19... b6 {[%clk 0:01:57.8]} 20. Qa3 {[%clk 0:01:24.9]} 20... Nb5 {[%clk
0:01:52.4]} 21. Qc1 {[%clk 0:01:11.6]} 21... Nd4 {[%clk 0:01:49.9]} 22. a4
{[%clk 0:01:00.7]} 22... a5 {[%clk 0:01:42.1]} 23. Qb2 {[%clk 0:00:59.2]} 23...
Rfe8 {[%clk 0:01:37.2]} 24. Rad1 {[%clk 0:00:55.9]} 24... Qc7 {[%clk 0:01:36.2]}
25. c3 {[%clk 0:00:52.7]} 25... Nxf3+ {[%clk 0:01:32.9]} 26. Nxf3 {[%clk
0:00:52.5]} 26... Bg4 {[%clk 0:01:33]} 27. Qe2 {[%clk 0:00:49.2]} 27... Qb7
{[%clk 0:01:16.4]} 28. Qe4 {[%clk 0:00:48.3]} 28... Qxe4 {[%clk 0:00:49.2]} 29.
dxe4 {[%clk 0:00:47.5]} 29... Bxf3 {[%clk 0:00:45.2]} 30. gxf3 {[%clk
0:00:47.3]} 30... Kf7 {[%clk 0:00:44.6]} 31. Kf1 {[%clk 0:00:47.3]} 31... Ke6
{[%clk 0:00:44.2]} 32. Ke2 {[%clk 0:00:47.6]} 32... h5 {[%clk 0:00:34.3]} 33.
Rd3 {[%clk 0:00:32.6]} 33... Rxd3 {[%clk 0:00:30.2]} 34. Kxd3 {[%clk 0:00:32.5]}
34... Rd8+ {[%clk 0:00:26.4]} 35. Ke2 {[%clk 0:00:26.6]} 35... f5 {[%clk
0:00:23.7]} 36. Rg1 {[%clk 0:00:24.1]} 36... Kf6 {[%clk 0:00:23.8]} 37. Rb1
{[%clk 0:00:19.1]} 37... f4 {[%clk 0:00:21.3]} 38. h4 {[%clk 0:00:17.4]} 38...
g5 {[%clk 0:00:20.6]} 39. Rh1 {[%clk 0:00:16.1]} 39... gxh4 {[%clk 0:00:19.9]}
40. Rxh4 {[%clk 0:00:16]} 40... Rh8 {[%clk 0:00:18.5]} 41. Kd3 {[%clk
0:00:13.9]} 41... Kg5 {[%clk 0:00:18.2]} 42. Rh1 {[%clk 0:00:12.8]} 42... h4
{[%clk 0:00:18.2]} 43. Kc4 {[%clk 0:00:13.2]} 43... h3 {[%clk 0:00:15.5]} 44.
Kb5 {[%clk 0:00:12.9]} 44... Rh6 {[%clk 0:00:14.5]} 45. b4 {[%clk 0:00:12.2]}
45... cxb4 {[%clk 0:00:13.8]} 46. cxb4 {[%clk 0:00:13.1]} 46... axb4 {[%clk
0:00:14.2]} 47. Kxb4 {[%clk 0:00:13.6]} 47... Kh4 {[%clk 0:00:14.8]} 48. Kc4
{[%clk 0:00:13.2]} 48... Rd6 {[%clk 0:00:15.2]} 49. Rh2 {[%clk 0:00:12.3]} 49...
Rd4+ {[%clk 0:00:15.1]} 50. Kb5 {[%clk 0:00:12.3]} 50... Rd3 {[%clk 0:00:15.3]}
51. Kxb6 {[%clk 0:00:12.4]} 51... Rxf3 {[%clk 0:00:15.9]} 52. a5 {[%clk
0:00:13]} 52... Rb3+ {[%clk 0:00:15.2]} 53. Kc5 {[%clk 0:00:12.4]} 53... Ra3
{[%clk 0:00:15.1]} 54. Kb4 {[%clk 0:00:11.2]} 54... Ra2 {[%clk 0:00:14.9]} 55.
Kb5 {[%clk 0:00:10]} 55... Kg4 {[%clk 0:00:15.3]} 56. a6 {[%clk 0:00:09]} 56...
Kf3 {[%clk 0:00:15.6]} 57. Kb6 {[%clk 0:00:08.6]} 57... Kxe4 {[%clk 0:00:14.9]}
58. Rxh3 {[%clk 0:00:08.3]} 58... Kd4 {[%clk 0:00:14]} 59. a7 {[%clk 0:00:08.2]}
59... e4 {[%clk 0:00:14.2]} 60. Rh5 {[%clk 0:00:06.9]} 60... e3 {[%clk
0:00:11.9]} 61. fxe3+ {[%clk 0:00:06.5]} 61... fxe3 {[%clk 0:00:12.2]} 62. Ra5
{[%clk 0:00:06.3]} 62... Rxa5 {[%clk 0:00:12.2]} 63. Kxa5 {[%clk 0:00:06.2]}
63... e2 {[%clk 0:00:12.8]} 64. a8=Q {[%clk 0:00:06.3]} 64... e1=Q+ {[%clk
0:00:13.1]} 65. Kb6 {[%clk 0:00:06.2]} 65... Qb4+ {[%clk 0:00:12.7]} 66. Ka7
{[%clk 0:00:06.2]} 66... Qa5+ {[%clk 0:00:12.4]} 67. Kb8 {[%clk 0:00:06.2]}
67... Qxa8+ {[%clk 0:00:13]} 68. Kxa8 {[%clk 0:00:06]} 1/2-1/2

[Event "*** Titled Tuesday Blitz"]
[Site "Chess.com"]
[Date "2020.12.29"]
[Round "8"]
[White "BelaKis"]
[Black "Fortitudine"]
[Result "0-1"]
[WhiteElo "2125"]
[BlackElo "2326"]
[TimeControl "180+1"]
[EndTime "11:29:15 PST"]
[Termination "Fortitudine won by resignation"]

1. Nf3 {[%clk 0:03:00.9]} 1... Nf6 {[%clk 0:02:59.3]} 2. g3 {[%clk 0:02:59.9]}
2... c5 {[%clk 0:02:58.5]} 3. Bg2 {[%clk 0:03:00.8]} 3... g6 {[%clk 0:02:58.8]}
4. O-O {[%clk 0:03:01.1]} 4... Bg7 {[%clk 0:02:59.5]} 5. d3 {[%clk 0:02:58.1]}
5... O-O {[%clk 0:02:59.8]} 6. Nbd2 {[%clk 0:02:56.7]} 6... Nc6 {[%clk
0:02:58.3]} 7. a3 {[%clk 0:02:56.8]} 7... b6 {[%clk 0:02:58.3]} 8. Rb1 {[%clk
0:02:53.2]} 8... Bb7 {[%clk 0:02:50.4]} 9. c4 {[%clk 0:02:48.7]} 9... d5 {[%clk
0:02:47.3]} 10. b4 {[%clk 0:02:45.6]} 10... cxb4 {[%clk 0:02:41.8]} 11. axb4
{[%clk 0:02:43.8]} 11... dxc4 {[%clk 0:02:42.1]} 12. Nxc4 {[%clk 0:02:39.9]}
12... Nd5 {[%clk 0:02:35.2]} 13. Bd2 {[%clk 0:02:39.7]} 13... Rc8 {[%clk
0:02:28.5]} 14. b5 {[%clk 0:02:35.4]} 14... Nb8 {[%clk 0:02:08.4]} 15. Qa4
{[%clk 0:02:29.1]} 15... a5 {[%clk 0:01:53.2]} 16. bxa6 {[%clk 0:02:17.7]} 16...
Nxa6 {[%clk 0:01:53.1]} 17. Qb5 {[%clk 0:01:54.6]} 17... Nac7 {[%clk 0:01:44.6]}
18. Qb3 {[%clk 0:01:46.3]} 18... b5 {[%clk 0:01:37.9]} 19. Na5 {[%clk
0:01:44.5]} 19... Ba8 {[%clk 0:01:36.9]} 20. Rfc1 {[%clk 0:01:41.9]} 20... b4
{[%clk 0:01:28.4]} 21. d4 {[%clk 0:01:21.9]} 21... Na6 {[%clk 0:01:10.3]} 22.
Rxc8 {[%clk 0:01:01.5]} 22... Qxc8 {[%clk 0:01:11.2]} 23. Rc1 {[%clk 0:01:00.1]}
23... Qd8 {[%clk 0:01:01]} 24. Nc6 {[%clk 0:00:57]} 24... Qb6 {[%clk 0:00:59.1]}
25. Nfe5 {[%clk 0:00:56]} 25... e6 {[%clk 0:00:34.5]} 26. Bxd5 {[%clk
0:00:42.6]} 26... exd5 {[%clk 0:00:35.4]} 27. Qxd5 {[%clk 0:00:42.9]} 27... b3
{[%clk 0:00:27.3]} 28. Qa5 {[%clk 0:00:37.2]} 28... Qxa5 {[%clk 0:00:22.6]} 29.
Nxa5 {[%clk 0:00:37]} 29... Be4 {[%clk 0:00:21.7]} 30. Bc3 {[%clk 0:00:26.5]}
30... Rc8 {[%clk 0:00:18.1]} 31. Bb2 {[%clk 0:00:25.6]} 31... Rxc1+ {[%clk
0:00:16.8]} 32. Bxc1 {[%clk 0:00:26.5]} 32... Nc5 {[%clk 0:00:11.2]} 33. Nac4
{[%clk 0:00:20.6]} 33... Na4 {[%clk 0:00:09.4]} 34. Nb2 {[%clk 0:00:19.3]} 34...
Nb6 {[%clk 0:00:09.3]} 35. f3 {[%clk 0:00:19]} 35... Bc2 {[%clk 0:00:09.8]} 36.
Kf2 {[%clk 0:00:19]} 36... f6 {[%clk 0:00:08.6]} 37. Ned3 {[%clk 0:00:17.6]}
37... f5 {[%clk 0:00:08.9]} 38. e3 {[%clk 0:00:17.8]} 38... Nd5 {[%clk
0:00:08.6]} 39. Nc5 {[%clk 0:00:17.6]} 39... Nc3 {[%clk 0:00:08.1]} 40. Nbd3
{[%clk 0:00:16.7]} 40... Na2 {[%clk 0:00:08.1]} 41. Ba3 {[%clk 0:00:15.5]} 41...
Bf8 {[%clk 0:00:08.3]} 42. Ke2 {[%clk 0:00:15.3]} 42... Nc3+ {[%clk 0:00:07.9]}
43. Kd2 {[%clk 0:00:15.2]} 43... Nb5 {[%clk 0:00:08.8]} 44. Bb2 {[%clk
0:00:15.3]} 44... Bd6 {[%clk 0:00:08]} 45. Ne1 {[%clk 0:00:15.5]} 45... Bxc5
{[%clk 0:00:06.5]} 46. dxc5 {[%clk 0:00:16.4]} 46... Kf7 {[%clk 0:00:06.1]} 47.
Nxc2 {[%clk 0:00:16.6]} 47... bxc2 {[%clk 0:00:07]} 48. Kxc2 {[%clk 0:00:17.5]}
48... Ke6 {[%clk 0:00:07.9]} 49. Kd3 {[%clk 0:00:18.3]} 49... Kd5 {[%clk
0:00:08.4]} 50. e4+ {[%clk 0:00:18.8]} 50... fxe4+ {[%clk 0:00:09.3]} 51. fxe4+
{[%clk 0:00:19.6]} 51... Kxc5 {[%clk 0:00:10.2]} 52. e5 {[%clk 0:00:20.2]} 52...
Kd5 {[%clk 0:00:10.6]} 53. e6 {[%clk 0:00:20.5]} 53... Kxe6 {[%clk 0:00:11]} 54.
Ke4 {[%clk 0:00:21.1]} 54... Nd6+ {[%clk 0:00:11.5]} 55. Kf4 {[%clk 0:00:21.4]}
55... Nc4 {[%clk 0:00:12.1]} 56. Kg5 {[%clk 0:00:21.7]} 56... Nxb2 {[%clk
0:00:12.5]} 57. Kh6 {[%clk 0:00:22.6]} 57... Kf5 {[%clk 0:00:12.1]} 58. Kxh7
{[%clk 0:00:23.5]} 58... Nd3 {[%clk 0:00:11.3]} 59. Kh6 {[%clk 0:00:23.6]} 59...
Ne5 {[%clk 0:00:11]} 60. h3 {[%clk 0:00:23.5]} 60... Nf3 {[%clk 0:00:11.4]} 61.
g4+ {[%clk 0:00:23.9]} 61... Kf6 {[%clk 0:00:11.9]} 62. h4 {[%clk 0:00:21]}
62... Nxh4 {[%clk 0:00:11.4]} 63. g5+ {[%clk 0:00:21.3]} 63... Kf5 {[%clk
0:00:12.3]} 64. Kh7 {[%clk 0:00:21.8]} 64... Nf3 {[%clk 0:00:13.1]} 65. Kg7
{[%clk 0:00:22.7]} 65... Nxg5 {[%clk 0:00:14]} 66. Kh6 {[%clk 0:00:22.7]} 66...
Ne6 {[%clk 0:00:14.9]} 67. Kh7 {[%clk 0:00:22.4]} 67... g5 {[%clk 0:00:15.6]}
68. Kg8 {[%clk 0:00:23.1]} 68... g4 {[%clk 0:00:16.5]} 69. Kf7 {[%clk
0:00:22.9]} 69... g3 {[%clk 0:00:17.4]} 70. Ke7 {[%clk 0:00:23.8]} 70... g2
{[%clk 0:00:18.3]} 71. Kd6 {[%clk 0:00:24.6]} 71... g1=Q {[%clk 0:00:18.7]} 72.
Kd7 {[%clk 0:00:25.5]} 72... Qd4+ {[%clk 0:00:18.9]} 73. Ke7 {[%clk 0:00:26.4]}
73... Qf6+ {[%clk 0:00:18.3]} 74. Kd6 {[%clk 0:00:27.3]} 74... Nf4+ {[%clk
0:00:18.6]} 75. Kd7 {[%clk 0:00:28.2]} 75... Qe6+ {[%clk 0:00:18.7]} 76. Kc7
{[%clk 0:00:29.1]} 76... Qc4+ {[%clk 0:00:18.4]} 77. Kd6 {[%clk 0:00:30]} 77...
Qb4+ {[%clk 0:00:18.3]} 78. Kd7 {[%clk 0:00:29.6]} 78... Qb5+ {[%clk 0:00:18.1]}
79. Kc8 {[%clk 0:00:30.5]} 79... Qa6+ {[%clk 0:00:15.5]} 80. Kd8 {[%clk
0:00:31.4]} 80... Qb7 {[%clk 0:00:15.7]} 81. Ke8 {[%clk 0:00:31.5]} 81... Kf6
{[%clk 0:00:16]} 82. Kd8 {[%clk 0:00:31]} 82... Ke6 {[%clk 0:00:15.2]} 0-1

[Event "*** Titled Tuesday Blitz"]
[Site "Chess.com"]
[Date "2020.12.29"]
[Round "8"]
[White "champ2005"]
[Black "SaraciNderim"]
[Result "1-0"]
[WhiteElo "2997"]
[BlackElo "2830"]
[TimeControl "180+1"]
[EndTime "11:29:17 PST"]
[Termination "champ2005 won on time"]

1. d4 {[%clk 0:03:00.9]} 1... Nf6 {[%clk 0:02:59.8]} 2. Bf4 {[%clk 0:03:01.4]}
2... d5 {[%clk 0:02:59.5]} 3. e3 {[%clk 0:03:01.7]} 3... c5 {[%clk 0:02:59.8]}
4. c3 {[%clk 0:03:01.4]} 4... Nc6 {[%clk 0:02:59.9]} 5. Nd2 {[%clk 0:03:01.6]}
5... Qb6 {[%clk 0:02:59.5]} 6. Qb3 {[%clk 0:03:01.4]} 6... c4 {[%clk 0:02:56]}
7. Qc2 {[%clk 0:03:01.7]} 7... g6 {[%clk 0:02:52.3]} 8. e4 {[%clk 0:03:02.1]}
8... Nxe4 {[%clk 0:02:48.1]} 9. Nxe4 {[%clk 0:02:58.3]} 9... dxe4 {[%clk
0:02:45.7]} 10. Bxc4 {[%clk 0:02:57.6]} 10... Bg7 {[%clk 0:02:45.7]} 11. Ne2
{[%clk 0:02:48.6]} 11... O-O {[%clk 0:02:45]} 12. Be3 {[%clk 0:02:47.7]} 12...
Na5 {[%clk 0:01:40.8]} 13. Bd5 {[%clk 0:02:44]} 13... Bf5 {[%clk 0:01:40.5]} 14.
b4 {[%clk 0:02:25.9]} 14... Nc6 {[%clk 0:01:21.8]} 15. Bxe4 {[%clk 0:02:25.8]}
15... Bxe4 {[%clk 0:01:14.9]} 16. Qxe4 {[%clk 0:02:26.7]} 16... e6 {[%clk
0:01:15.2]} 17. O-O {[%clk 0:02:22.8]} 17... Qb5 {[%clk 0:01:15.2]} 18. Nf4
{[%clk 0:02:07.4]} 18... Rac8 {[%clk 0:01:13.5]} 19. Qd3 {[%clk 0:01:59.7]}
19... Qxd3 {[%clk 0:00:51.5]} 20. Nxd3 {[%clk 0:02:00.6]} 20... Ne7 {[%clk
0:00:51.7]} 21. Rac1 {[%clk 0:01:52.9]} 21... Rc4 {[%clk 0:00:50.9]} 22. Bd2
{[%clk 0:01:12.2]} 22... Rfc8 {[%clk 0:00:48.5]} 23. Nb2 {[%clk 0:01:12.1]}
23... R4c7 {[%clk 0:00:46.1]} 24. Rce1 {[%clk 0:01:11.9]} 24... Nd5 {[%clk
0:00:43.1]} 25. Nd1 {[%clk 0:01:12.2]} 25... b6 {[%clk 0:00:38.2]} 26. f4 {[%clk
0:01:03.2]} 26... h5 {[%clk 0:00:36.8]} 27. g3 {[%clk 0:00:58.9]} 27... Kf8
{[%clk 0:00:34.5]} 28. Kg2 {[%clk 0:00:57.9]} 28... Ke7 {[%clk 0:00:34]} 29. Kf3
{[%clk 0:00:58.4]} 29... f5 {[%clk 0:00:30.5]} 30. h3 {[%clk 0:00:55]} 30... Nf6
{[%clk 0:00:27.6]} 31. Re2 {[%clk 0:00:34.8]} 31... Ne4 {[%clk 0:00:27.2]} 32.
Rfe1 {[%clk 0:00:35]} 32... Kf7 {[%clk 0:00:27.4]} 33. Rg1 {[%clk 0:00:25.6]}
33... Bf6 {[%clk 0:00:26.7]} 34. Be1 {[%clk 0:00:25.2]} 34... a5 {[%clk
0:00:19.9]} 35. bxa5 {[%clk 0:00:24.7]} 35... bxa5 {[%clk 0:00:19.5]} 36. Ke3
{[%clk 0:00:21.6]} 36... Rb7 {[%clk 0:00:16.9]} 37. Rc2 {[%clk 0:00:10.3]} 37...
Rb1 {[%clk 0:00:16.2]} 38. Ke2 {[%clk 0:00:10.5]} 38... Bxd4 {[%clk 0:00:13]}
39. Rf1 {[%clk 0:00:10.8]} 39... Bf6 {[%clk 0:00:08.8]} 40. Rf3 {[%clk
0:00:11.3]} 40... a4 {[%clk 0:00:08.6]} 41. Rd3 {[%clk 0:00:08.7]} 41... Ke8
{[%clk 0:00:07.5]} 42. c4 {[%clk 0:00:09.1]} 42... Rcb8 {[%clk 0:00:06.5]} 43.
c5 {[%clk 0:00:07.9]} 43... Rc8 {[%clk 0:00:07]} 44. c6 {[%clk 0:00:08.2]} 44...
Rb6 {[%clk 0:00:06.9]} 45. c7 {[%clk 0:00:06.4]} 45... Rb7 {[%clk 0:00:06.4]}
46. Ba5 {[%clk 0:00:06.6]} 46... Be7 {[%clk 0:00:06]} 47. Nf2 {[%clk 0:00:05.1]}
47... Nd6 {[%clk 0:00:04.3]} 48. a3 {[%clk 0:00:03.6]} 48... Nb5 {[%clk
0:00:04.5]} 49. Rb2 {[%clk 0:00:04]} 49... Bxa3 {[%clk 0:00:03.5]} 50. Rxa3
{[%clk 0:00:02.3]} 50... Nd4+ {[%clk 0:00:03.8]} 51. Kd3 {[%clk 0:00:02.8]}
51... Rxb2 {[%clk 0:00:04.6]} 52. Kxd4 {[%clk 0:00:03.4]} 52... Rxf2 {[%clk
0:00:04.7]} 53. Ke5 {[%clk 0:00:03.9]} 53... Kd7 {[%clk 0:00:03.2]} 54. Rxa4
{[%clk 0:00:04.4]} 54... Re2+ {[%clk 0:00:02.8]} 55. Kf6 {[%clk 0:00:04.9]}
55... Ra8 {[%clk 0:00:03.1]} 56. Rd4+ {[%clk 0:00:05.1]} 56... Kc6 {[%clk
0:00:03.4]} 57. Rd8 {[%clk 0:00:05.6]} 1-0